bitfinex-derivatives/quotes_BTCF0:USTF0_20250426
["timestamp","ask_amount","ask_price","bid_price","bid_amount"]
[1745654832269,0.9199739,94653.0,94652.0,0.46050475]
[1745654832476,0.9534739,94653.0,94652.0,0.46050475]
[1745654833065,1.1214739,94653.0,94652.0,0.46050475]
[1745654835169,0.9534739,94653.0,94652.0,0.46050475]
[1745654836868,0.9534739,94653.0,94652.0,0.46051352]
[1745654837262,1.1214739,94653.0,94652.0,0.46051352]
[1745654837467,1.1214739,94653.0,94652.0,0.34830412]
[1745654837663,1.1547739,94653.0,94652.0,0.34830412]
[1745654839365,1.1547739,94653.0,94652.0,0.34830541]
[1745654840471,1.5155739,94653.0,94652.0,0.34830541]
[1745654841174,1.3475739,94653.0,94652.0,0.34830541]
[1745654842269,1.5155739,94653.0,94652.0,0.34830541]
[1745654843173,1.3475739,94653.0,94652.0,0.34830541]
[1745654844073,1.5155739,94653.0,94652.0,0.34830541]
[1745654852283,1.5155739,94653.0,94652.0,0.38110544]
[1745654852472,0.7939739,94653.0,94652.0,0.38110544]
[1745654852680,1.5155739,94653.0,94652.0,0.38110544]
[1745654855073,1.5155739,94653.0,94652.0,0.41310544]
[1745654856984,0.7939739,94653.0,94652.0,0.41310544]
[1745654857282,1.5155739,94653.0,94652.0,0.41310544]
[1745654857473,0.7939739,94653.0,94652.0,0.41310544]
[1745654857678,1.5155739,94653.0,94652.0,0.41310544]
[1745654861090,1.5155739,94653.0,94652.0,0.41268976]
[1745654861481,1.5155739,94653.0,94652.0,0.41269062]
[1745654863287,1.3475739,94653.0,94652.0,0.41269062]
[1745654863881,1.3142739,94653.0,94652.0,0.41269062]
[1745654864788,1.3142739,94653.0,94652.0,0.41304797]
[1745654866590,1.3142739,94653.0,94652.0,0.41310544]
[1745654871380,1.2156139,94653.0,94652.0,0.41310544]
[1745654871580,1.2807739,94653.0,94652.0,0.41310544]
[1745654871791,1.2156139,94653.0,94652.0,0.41310544]
[1745654871988,1.2807739,94653.0,94652.0,0.41310544]
[1745654872188,1.2807739,94653.0,94652.0,0.58110544]
[1745654873686,1.2807739,94653.0,94652.0,0.5811042]
[1745654874087,1.2807739,94653.0,94652.0,0.4131042]
[1745654875092,1.2807739,94653.0,94652.0,0.5811042]
[1745654875293,1.2156139,94653.0,94652.0,0.5163042]
[1745654875487,1.2807739,94653.0,94652.0,0.4048568]
[1745654875688,1.2807739,94653.0,94652.0,0.2325243]
[1745654875890,1.2807739,94653.0,94652.0,0.4493989]
[1745654876083,1.4487739,94653.0,94652.0,0.4102]
[1745654884201,0.7271739,94653.0,94652.0,0.4102]
[1745654884399,1.4487739,94653.0,94652.0,0.4102]
[1745654891000,1.4487739,94653.0,94652.0,0.42671603]
[1745654892407,1.4487739,94653.0,94652.0,0.22517753]
[1745654892604,1.4487739,94653.0,94652.0,0.12511073]
[1745654892800,1.4487739,94653.0,94652.0,0.04981043]
[1745654893008,0.2112361,94641.0,94640.0,0.06566132]
[1745654893206,0.2112406,94639.0,94638.0,0.0641]
[1745654893404,0.5512406,94639.0,94638.0,0.0641]
[1745654894713,0.5522406,94639.0,94638.0,0.0641]
[1745654895212,0.9130406,94639.0,94638.0,0.0641]
[1745654895715,0.9782006,94639.0,94638.0,0.0641]
[1745654896110,0.9782006,94639.0,94638.0,0.0977]
[1745654897509,0.9782006,94639.0,94638.0,0.5079]
[1745654898315,0.9782006,94639.0,94638.0,0.5089]
[1745654898914,0.9852006,94639.0,94638.0,0.5089]
[1745654900613,0.9852006,94639.0,94638.0,0.4728777]
[1745654901211,1.1856006,94639.0,94638.0,0.4728777]
[1745654903712,1.1856006,94639.0,94638.0,0.3591747]
[1745654903918,1.2184006,94639.0,94638.0,0.3591747]
[1745654904215,1.2184006,94639.0,94638.0,0.4238747]
[1745654905019,1.2184006,94639.0,94638.0,0.44005029]
[1745654906916,1.2184006,94639.0,94638.0,0.4238747]
[1745654907117,1.2184006,94639.0,94638.0,0.43998676]
[1745654908820,1.2184006,94639.0,94638.0,0.37528676]
[1745654909014,1.2184006,94639.0,94638.0,0.02038796]
[1745654909222,0.2112651,94628.0,94627.0,0.0334]
[1745654909413,0.9120651,94628.0,94627.0,0.0334]
[1745654910314,1.0870651,94628.0,94627.0,0.0334]
[1745654910519,1.1197651,94628.0,94627.0,0.0334]
[1745654911323,0.2112763,94623.0,94622.0,0.0313]
[1745654911521,0.9872363,94623.0,94622.0,0.0635]
[1745654912216,0.2112785,94622.0,94621.0,0.17792678]
[1745654912411,0.6341785,94622.0,94621.0,0.17792678]
[1745654912719,0.6668785,94622.0,94621.0,0.17792678]
[1745654913122,0.8348785,94622.0,94621.0,0.17792678]
[1745654913911,1.1956785,94622.0,94621.0,0.17792678]
[1745654914312,1.1996785,94622.0,94621.0,0.17892678]
[1745654915019,1.2026785,94622.0,94621.0,0.17892678]
[1745654915815,1.2026785,94622.0,94621.0,0.09719198]
[1745654916020,1.2026785,94622.0,94621.0,8e-08]
[1745654917321,0.2112986,94613.0,94612.0,0.0326]
[1745654917522,0.9320986,94613.0,94612.0,0.0326]
[1745654918126,1.1000986,94613.0,94612.0,0.0326]
[1745654918329,1.1635986,94613.0,94612.0,0.0326]
[1745654918524,1.1695986,94613.0,94612.0,0.0336]
[1745654919331,1.1735986,94613.0,94612.0,0.0336]
[1745654921028,0.8127986,94613.0,94612.0,0.0336]
[1745654921334,1.5343986,94613.0,94612.0,0.0336]
[1745654922129,0.2113031,94611.0,94610.0,0.00105697]
[1745654922432,0.5413031,94611.0,94610.0,0.00105697]
[1745654923133,0.7093031,94611.0,94610.0,0.00105697]
[1745654924123,0.8179991,94611.0,94610.0,0.00105697]
[1745654924320,0.8229991,94611.0,94610.0,0.00205697]
[1745654925023,0.7183031,94611.0,94610.0,0.00205697]
[1745654926331,0.7834631,94611.0,94610.0,0.00105697]
[1745654926529,0.7824631,94611.0,94610.0,0.00105697]
[1745654926723,0.7824631,94611.0,94610.0,0.03155697]
[1745654927422,0.2113053,94610.0,94609.0,0.0326]
[1745654927622,0.2113098,94608.0,94601.0,0.4102]
[1745654927822,0.5213098,94608.0,94602.0,0.0326]
[1745654928221,0.6893098,94608.0,94602.0,0.0326]
[1745654928626,0.6923098,94608.0,94602.0,0.0326]
[1745654930221,1.4139098,94608.0,94602.0,0.0326]
[1745654930525,1.4169098,94608.0,94602.0,0.0326]
[1745654930722,1.4169098,94608.0,94603.0,0.0303]
[1745654931127,1.4169098,94608.0,94604.0,0.0318]
[1745654931429,0.6953098,94608.0,94604.0,0.0318]
[1745654931628,1.4169098,94608.0,94605.0,0.0316]
[1745654932226,1.4169098,94608.0,94606.0,0.0635]
[1745654932628,1.4169098,94608.0,94607.0,0.06778499]
[1745654936735,1.4169098,94608.0,94607.0,9e-08]
[1745654936941,1.4169098,94608.0,94577.0,0.0158712]
[1745654936942,0.2113679,94582.0,94581.0,0.37902539]
[1745654937234,0.9773279,94582.0,94581.0,0.37902539]
[1745654938134,0.9803279,94582.0,94581.0,0.39502539]
[1745654939228,0.9803279,94582.0,94581.0,0.56302539]
[1745654939433,0.9783279,94582.0,94581.0,0.56302539]
[1745654939635,0.9863279,94582.0,94581.0,0.54702539]
[1745654940132,0.9863279,94582.0,94581.0,0.37902539]
[1745654940334,0.9863279,94582.0,94581.0,0.47502539]
[1745654942337,0.6255279,94582.0,94581.0,0.58075339]
[1745654942539,0.5603679,94582.0,94581.0,0.58075339]
[1745654942728,0.6255279,94582.0,94581.0,0.58075339]
[1745654943136,0.6255279,94582.0,94581.0,0.74875339]
[1745654943329,0.6255279,94582.0,94581.0,0.64302539]
[1745654944438,0.6255279,94582.0,94581.0,0.65873965]
[1745654945238,0.6255279,94582.0,94581.0,0.49073965]
[1745654945430,0.6255279,94582.0,94581.0,0.49074143]
[1745654947241,0.6255279,94582.0,94581.0,0.49075259]
[1745654949534,0.6255279,94582.0,94581.0,0.47502539]
[1745654953548,0.9863279,94582.0,94581.0,0.47502539]
[1745654955236,1.1543279,94582.0,94581.0,0.47502539]
[1745654956245,0.9863279,94582.0,94581.0,0.47502539]
[1745654957044,1.0194279,94582.0,94581.0,0.47502539]
[1745654957544,1.0194279,94582.0,94581.0,0.44302539]
[1745654957735,1.0194279,94582.0,94581.0,0.47582539]
[1745654958541,0.6586279,94582.0,94581.0,0.47582539]
[1745654958744,1.0194279,94582.0,94581.0,0.47582539]
[1745654961547,1.0194279,94582.0,94581.0,0.47682539]
[1745654962254,1.0204279,94582.0,94581.0,0.47682539]
[1745654963249,1.1884279,94582.0,94581.0,0.47682539]
[1745654964153,1.0204279,94582.0,94581.0,0.47682539]
[1745654964759,0.6596279,94582.0,94581.0,0.47682539]
[1745654964945,1.0204279,94582.0,94581.0,0.47682539]
[1745654967852,0.9552679,94582.0,94581.0,0.58255339]
[1745654968058,0.4065279,94582.0,94581.0,0.83255339]
[1745654968258,0.4065279,94582.0,94581.0,1.00055339]
[1745654968553,0.4065279,94582.0,94581.0,1.74056349]
[1745654968865,0.4065279,94582.0,94581.0,1.75668469]
[1745654969062,0.4065279,94582.0,94581.0,1.01667459]
[1745654969359,0.4065279,94582.0,94581.0,1.54531459]
[1745654969951,0.4065279,94582.0,94581.0,1.01667459]
[1745654970758,0.4065279,94582.0,94581.0,0.97804469]
[1745654972357,0.4065279,94582.0,94581.0,0.76667459]
[1745654972658,0.4065279,94582.0,94581.0,0.76671281]
[1745654973952,0.4065279,94582.0,94581.0,0.97808291]
[1745654977166,0.19516,94582.0,94581.0,0.97808291]
[1745654978254,0.2113679,94588.0,94587.0,0.3170215]
[1745654978459,0.3365279,94588.0,94587.0,0.33318092]
[1745654979056,0.3365279,94588.0,94587.0,0.50118092]
[1745654980461,0.3365279,94588.0,94587.0,0.44834202]
[1745654980663,0.3375279,94588.0,94587.0,0.44834202]
[1745654981160,0.33736754,94588.0,94587.0,0.44837927]
[1745654981355,0.34136754,94588.0,94587.0,0.44937927]
[1745654981562,0.34136754,94588.0,94587.0,0.45037927]
[1745654981754,0.33636754,94588.0,94587.0,0.4331826]
[1745654981956,0.33836754,94588.0,94587.0,0.44934718]
[1745654982566,0.33836754,94588.0,94587.0,0.82837257]
[1745654984972,0.33836754,94588.0,94587.0,0.93409657]
[1745654986364,0.27320754,94588.0,94587.0,0.93409657]
[1745654986564,0.33836754,94588.0,94587.0,0.93409657]
[1745654989172,0.33836754,94588.0,94587.0,0.82837257]
[1745654989575,0.37136754,94588.0,94587.0,0.82837257]
[1745654999189,0.37236754,94588.0,94587.0,0.82937257]
[1745654999396,0.40616754,94588.0,94587.0,0.82837257]
[1745655000296,0.40616754,94588.0,94587.0,0.82937257]
[1745655000494,0.34100754,94588.0,94587.0,0.82937257]
[1745655000797,0.40616754,94588.0,94587.0,0.82973189]
[1745655001197,0.40616754,94588.0,94587.0,0.66173189]
[1745655007297,0.40616754,94588.0,94587.0,0.66168772]
[1745655008094,0.40616754,94588.0,94587.0,0.60885062]
[1745655008296,0.40616754,94588.0,94587.0,0.39750512]
[1745655008497,0.60616754,94588.0,94587.0,0.39750512]
[1745655009094,0.77416754,94588.0,94587.0,0.39750512]
[1745655012190,0.60616754,94588.0,94587.0,0.39750512]
[1745655015201,0.77416754,94588.0,94587.0,0.39750512]
[1745655016101,0.60616754,94588.0,94587.0,0.38102539]
[1745655016293,0.60616754,94588.0,94587.0,0.39755059]
[1745655016494,0.96696754,94588.0,94587.0,0.39755059]
[1745655016703,0.60616754,94588.0,94587.0,0.39755059]
[1745655016895,0.96696754,94588.0,94587.0,0.39755059]
[1745655017201,1.13496754,94588.0,94587.0,0.39755059]
[1745655018302,0.96696754,94588.0,94587.0,0.39755059]
[1745655019300,1.13496754,94588.0,94587.0,0.39755059]
[1745655021103,0.96696754,94588.0,94587.0,0.39755059]
[1745655024307,1.13496754,94588.0,94587.0,0.39755059]
[1745655025195,0.96696754,94588.0,94587.0,0.39755059]
[1745655026101,1.13496754,94588.0,94587.0,0.39755059]
[1745655027004,0.77416754,94588.0,94587.0,0.39755059]
[1745655027195,0.96696754,94588.0,94587.0,0.39755059]
[1745655028805,0.60616754,94588.0,94587.0,0.39755059]
[1745655029103,1.13496754,94588.0,94587.0,0.39755059]
[1745655030095,0.96696754,94588.0,94587.0,0.39755059]
[1745655032301,1.13496754,94588.0,94587.0,0.39755059]
[1745655032707,0.77416754,94588.0,94587.0,0.39755059]
[1745655032900,1.06980754,94588.0,94587.0,0.39755059]
[1745655033099,1.13496754,94588.0,94587.0,0.39755059]
[1745655034899,0.77416754,94588.0,94587.0,0.39755059]
[1745655035103,1.13496754,94588.0,94587.0,0.39755059]
[1745655039817,0.77416754,94588.0,94587.0,0.39755059]
[1745655040014,1.13496754,94588.0,94587.0,0.39755059]
[1745655040215,0.96696754,94588.0,94587.0,0.39755059]
[1745655042217,1.13496754,94588.0,94587.0,0.39755059]
[1745655042409,1.13496754,94588.0,94587.0,0.39755181]
[1745655042604,1.13496754,94588.0,94587.0,0.08680369]
[1745655043209,1.13496754,94588.0,94587.0,0.1033303]
[1745655044109,1.13496754,94588.0,94587.0,0.10326913]
[1745655045513,1.13496754,94588.0,94587.0,0.02248503]
[1745655047009,1.13496754,94588.0,94587.0,0.43268503]
[1745655047719,1.13496754,94588.0,94587.0,0.43258274]
[1745655049215,1.13496754,94588.0,94587.0,0.40255504]
[1745655049422,1.13496754,94588.0,94587.0,0.22265224]
[1745655049611,1.13496754,94588.0,94587.0,0.09481304]
[1745655049807,1.13496754,94588.0,94587.0,0.04340314]
[1745655051021,1.13496754,94588.0,94587.0,4e-08]
[1745655051618,1.49576754,94588.0,94587.0,4e-08]
[1745655052815,1.49576754,94588.0,94580.0,4e-08]
[1745655052816,0.2113701,94581.0,94580.0,4e-08]
[1745655053015,0.5213701,94581.0,94580.0,4e-08]
[1745655053717,0.6330701,94581.0,94580.0,4e-08]
[1745655054112,0.80891247,94581.0,94580.0,4e-08]
[1745655054317,0.81491247,94581.0,94580.0,0.00100004]
[1745655054523,0.81491247,94581.0,94580.0,0.00200004]
[1745655054818,0.81491247,94581.0,94580.0,4e-08]
[1745655055823,0.2113768,94578.0,94577.0,0.00528667]
[1745655056021,0.9121768,94578.0,94577.0,0.00528667]
[1745655056422,0.9121768,94578.0,94577.0,7e-08]
[1745655056622,0.9922768,94578.0,94577.0,7e-08]
[1745655057226,1.1632768,94578.0,94577.0,7e-08]
[1745655057724,1.1662768,94578.0,94577.0,0.00100007]
[1745655060120,0.9982768,94578.0,94577.0,0.00100007]
[1745655061111,1.1662768,94578.0,94577.0,0.00100007]
[1745655061926,1.17665835,94578.0,94577.0,0.00100007]
[1745655062223,1.00865835,94578.0,94577.0,0.00100007]
[1745655062429,0.64785835,94578.0,94577.0,0.00100007]
[1745655062627,1.00865835,94578.0,94577.0,0.00100007]
[1745655063228,1.17665835,94578.0,94577.0,0.00100007]
[1745655064225,1.00865835,94578.0,94577.0,0.00100007]
[1745655065531,0.9982768,94578.0,94577.0,0.00100007]
[1745655065827,1.07419292,94578.0,94577.0,0.00100007]
[1745655066220,1.07419292,94578.0,94577.0,0.04130007]
[1745655070727,0.71339292,94578.0,94577.0,0.04130007]
[1745655070933,1.03479292,94578.0,94577.0,0.04130007]
[1745655071924,0.96963292,94578.0,94577.0,0.04130007]
[1745655072123,1.03479292,94578.0,94577.0,0.04130007]
[1745655072523,0.67399292,94578.0,94577.0,0.04130007]
[1745655072723,1.03479292,94578.0,94577.0,0.04130007]
[1745655077122,1.03479292,94578.0,94577.0,0.20930007]
[1745655077637,1.0240368,94578.0,94577.0,0.20930007]
[1745655077823,0.9588768,94578.0,94577.0,0.20930007]
[1745655078027,1.0240368,94578.0,94577.0,0.20930007]
[1745655078234,0.9833368,94578.0,94577.0,0.20930007]
[1745655080036,0.9181768,94578.0,94577.0,0.42067907]
[1745655080240,0.9833368,94578.0,94577.0,0.42067907]
[1745655081641,0.9181768,94578.0,94577.0,0.42067907]
[1745655081846,0.9833368,94578.0,94577.0,0.42067907]
[1745655082340,0.9833368,94578.0,94577.0,0.83087907]
[1745655082541,0.9181768,94578.0,94577.0,0.83087907]
[1745655082840,0.9833368,94578.0,94577.0,0.83087907]
[1745655084139,0.7433368,94578.0,94577.0,0.83087907]
[1745655084942,0.7433368,94578.0,94577.0,0.61950007]
[1745655085136,0.6781768,94578.0,94577.0,0.61950007]
[1745655085334,0.7433368,94578.0,94577.0,0.61950007]
[1745655088440,0.3825368,94578.0,94577.0,0.61950007]
[1745655090635,0.4237368,94578.0,94577.0,0.61950007]
[1745655091140,0.4237368,94578.0,94577.0,0.45150007]
[1745655091347,1.0345368,94578.0,94577.0,0.41120007]
[1745655091843,1.0345368,94578.0,94577.0,0.44980007]
[1745655093936,1.0345368,94578.0,94577.0,0.41120007]
[1745655094340,0.9693768,94578.0,94577.0,0.41120007]
[1745655094645,1.0345368,94578.0,94577.0,0.41120007]
[1745655095140,1.2025368,94578.0,94577.0,0.41120007]
[1745655096147,1.0345368,94578.0,94577.0,0.41120007]
[1745655101148,1.2025368,94578.0,94577.0,0.41120007]
[1745655103137,1.2025368,94578.0,94577.0,0.28758897]
[1745655105740,0.2114103,94563.0,94562.0,0.28758897]
[1745655106042,0.9873703,94563.0,94562.0,0.28758897]
[1745655106649,1.0647703,94563.0,94562.0,0.28758897]
[1745655106942,1.0647703,94563.0,94562.0,0.28858897]
[1745655107145,1.2337703,94563.0,94562.0,0.28858897]
[1745655108946,1.24453032,94563.0,94562.0,0.28858897]
[1745655109846,1.35028232,94563.0,94562.0,0.28858897]
[1745655110045,1.24453032,94563.0,94562.0,0.28858897]
[1745655115649,1.24453032,94563.0,94562.0,0.25794327]
[1745655115850,1.24453032,94563.0,94562.0,0.09842277]
[1745655116050,1.24453032,94563.0,94562.0,0.03641477]
[1745655116657,1.17937032,94563.0,94562.0,7e-08]
[1745655116857,1.24453032,94563.0,94562.0,7e-08]
[1745655117062,0.2114349,94552.0,94551.0,0.0408]
[1745655117355,0.2114439,94548.0,94547.0,9e-08]
[1745655117657,0.9774039,94548.0,94547.0,9e-08]
[1745655117861,1.0831719,94548.0,94547.0,9e-08]
[1745655118062,1.2511719,94548.0,94547.0,9e-08]
[1745655119359,0.2114864,94529.0,94528.0,0.33937459]
[1745655119562,0.2114864,94529.0,94520.0,0.00105797]
[1745655119563,0.2115043,94521.0,94520.0,0.00105797]
[1745655119759,0.8723043,94521.0,94520.0,0.00105797]
[1745655120762,0.9137043,94521.0,94520.0,0.00105797]
[1745655120961,0.9788643,94521.0,94520.0,0.00105797]
[1745655121151,0.98945732,94521.0,94520.0,0.00105797]
[1745655121364,0.9788643,94521.0,94520.0,0.00105797]
[1745655121567,0.9798643,94521.0,94520.0,0.00305797]
[1745655121765,0.99038607,94521.0,94520.0,0.00305797]
[1745655122167,0.99138607,94521.0,94520.0,0.00305797]
[1745655123861,0.99038607,94521.0,94520.0,0.00105797]
[1745655124067,0.99138607,94521.0,94520.0,7e-08]
[1745655125167,1.15938607,94521.0,94520.0,7e-08]
[1745655125368,0.211511,94518.0,94517.0,1e-07]
[1745655125567,0.581511,94518.0,94517.0,1e-07]
[1745655126572,0.583511,94518.0,94517.0,1e-07]
[1745655127361,0.584511,94518.0,94517.0,0.0010001]
[1745655128869,0.584511,94518.0,94517.0,1e-07]
[1745655129573,0.2115446,94503.0,94502.0,0.0043159]
[1745655129770,0.2115468,94502.0,94501.0,0.33937459]
[1745655129964,0.6106468,94502.0,94501.0,0.33937459]
[1745655130162,0.6106468,94502.0,94501.0,0.50737459]
[1745655131375,0.6116468,94502.0,94501.0,0.50737459]
[1745655132166,0.6146468,94502.0,94501.0,0.50737459]
[1745655132562,0.6798068,94502.0,94501.0,0.50737459]
[1745655132768,0.6798068,94502.0,94501.0,0.54777459]
[1745655133671,0.6404068,94502.0,94501.0,0.54777459]
[1745655133866,0.6404468,94502.0,94501.0,0.54777459]
[1745655136573,0.6791468,94502.0,94501.0,0.54777459]
[1745655140878,0.6791468,94502.0,94501.0,0.2084]
[1745655141079,0.6791468,94502.0,94501.0,0.2466]
[1745655142778,0.6791468,94502.0,94501.0,0.2859]
[1745655143675,0.6139468,94502.0,94501.0,0.2859]
[1745655143876,0.6791468,94502.0,94501.0,0.2859]
[1745655146586,0.6791468,94502.0,94501.0,0.2455]
[1745655147085,0.6791468,94502.0,94501.0,0.168]
[1745655147678,0.6791468,94502.0,94501.0,0.2074]
[1745655148971,0.6791468,94502.0,94501.0,0.168]
[1745655154981,0.6791468,94502.0,94501.0,0.134335]
[1745655155179,0.211549,94501.0,94500.0,0.1]
[1745655155379,0.561549,94501.0,94500.0,0.1]
[1745655155580,0.637349,94501.0,94500.0,0.1]
[1745655156178,0.637349,94501.0,94500.0,0.268]
[1745655156379,0.641349,94501.0,94500.0,0.268]
[1745655156682,1.362949,94501.0,94500.0,0.268]
[1745655157485,1.325049,94501.0,94500.0,0.268]
[1745655157681,1.390249,94501.0,94500.0,0.268]
[1745655162382,1.390249,94501.0,94500.0,0.3079]
[1745655165592,1.325049,94501.0,94500.0,0.3079]
[1745655165792,1.390769,94501.0,94500.0,0.3079]
[1745655170596,1.428569,94501.0,94500.0,0.3079]
[1745655174698,0.992069,94501.0,94500.0,0.66372]
[1745655175394,0.992069,94501.0,94500.0,0.41372]
[1745655175796,0.992069,94501.0,94500.0,0.3079]
[1745655176099,0.992069,94501.0,94500.0,0.64727459]
[1745655176900,0.926349,94501.0,94500.0,0.64727459]
[1745655177094,0.992069,94501.0,94500.0,0.64727459]
[1745655177294,0.926349,94501.0,94500.0,0.64727459]
[1745655177498,0.992069,94501.0,94500.0,0.64727459]
[1745655180191,1.033369,94501.0,94500.0,0.52114169]
[1745655182205,1.033369,94501.0,94500.0,0.1817671]
[1745655187205,1.033369,94501.0,94500.0,0.0137671]
[1745655188106,1.033369,94501.0,94500.0,0.1817671]
[1745655189000,1.033369,94501.0,94500.0,0.3933184]
[1745655189001,0.926349,94501.0,94500.0,0.3933184]
[1745655189201,0.992029,94501.0,94500.0,0.3933184]
[1745655189505,0.992029,94501.0,94500.0,0.1817671]
[1745655190006,0.992029,94501.0,94500.0,0.2679671]
[1745655190710,0.782029,94501.0,94500.0,0.2679671]
[1745655193901,0.782029,94501.0,94500.0,0.60734169]
[1745655194303,0.782029,94501.0,94500.0,0.81889299]
[1745655196111,1e-08,94501.0,94500.0,1.70381299]
[1745655196809,0.21154901,94501.0,94500.0,1.70381299]
[1745655198099,1e-08,94501.0,94500.0,1.70381299]
[1745655199105,0.0528814,94512.0,94511.0,0.2115222]
[1745655199302,0.10584,94512.0,94511.0,0.2115222]
[1745655199499,0.10584,94512.0,94511.0,0.65670478]
[1745655199702,0.10584,94512.0,94511.0,0.73700478]
[1745655199898,0.3173703,94512.0,94511.0,0.73700478]
[1745655200118,0.3173703,94512.0,94511.0,0.90500478]
[1745655200300,0.3213703,94512.0,94511.0,0.90500478]
[1745655201507,0.3213703,94512.0,94511.0,0.90600478]
[1745655201508,0.3253703,94512.0,94511.0,0.90600478]
[1745655203812,0.3353703,94512.0,94511.0,0.80019679]
[1745655204313,0.3453703,94512.0,94511.0,0.58867459]
[1745655204715,0.5953703,94512.0,94511.0,0.50837459]
[1745655214515,0.5295303,94512.0,94511.0,0.50837459]
[1745655214710,0.5953703,94512.0,94511.0,0.50837459]
[1745655216114,0.3653703,94512.0,94511.0,0.71990119]
[1745655216314,0.088,94512.0,94511.0,0.71990119]
[1745655216511,0.15384,94512.0,94511.0,0.82570918]
[1745655216808,0.15384,94512.0,94511.0,0.91030918]
[1745655217017,0.15384,94512.0,94511.0,0.80450119]
[1745655217214,0.3653644,94512.0,94511.0,0.91030918]
[1745655218108,0.3653644,94512.0,94511.0,0.80450119]
[1745655218509,0.088,94512.0,94511.0,0.91030918]
[1745655220016,0.1278,94512.0,94511.0,0.8202975]
[1745655220218,0.0528772,94519.0,94511.0,0.8202975]
[1745655220219,0.3608,94530.0,94526.0,0.2114931]
[1745655220523,0.18584,94527.0,94526.0,0.566664]
[1745655220710,0.18584,94527.0,94526.0,0.672456]
[1745655221216,0.18584,94527.0,94526.0,0.840456]
[1745655221427,0.0052,94548.0,94542.0,0.2114573]
[1745655221622,0.06692,94547.0,94546.0,0.2114483]
[1745655221811,0.06692,94547.0,94546.0,0.5666192]
[1745655222014,0.0407,94553.0,94546.0,0.44514259]
[1745655222216,0.12762,94553.0,94552.0,0.5722349]
[1745655222816,0.08692,94553.0,94552.0,0.5722349]
[1745655223018,0.02,94553.0,94552.0,0.68593116]
[1745655223217,0.26752913,94563.0,94562.0,0.2114126]
[1745655223418,0.36444913,94563.0,94562.0,0.5722126]
[1745655223614,0.36444913,94563.0,94562.0,0.6779646]
[1745655224013,0.36444913,94563.0,94562.0,0.7618646]
[1745655224014,0.29752913,94563.0,94562.0,0.7618646]
[1745655224213,0.29752913,94563.0,94562.0,0.9298646]
[1745655224921,0.29852913,94563.0,94562.0,0.9298646]
[1745655225123,0.031,94563.0,94562.0,0.94562971]
[1745655225325,0.001,94563.0,94562.0,0.94562971]
[1745655225524,0.06692,94568.0,94567.0,0.2114014]
[1745655225726,0.06822,94571.0,94570.0,0.2113947]
[1745655226022,0.06822,94571.0,94570.0,0.2271452]
[1745655226219,0.06822,94571.0,94570.0,0.50088519]
[1745655226422,0.01,94590.0,94570.0,0.50088519]
[1745655226728,0.0528274,94609.0,94570.0,0.50088519]
[1745655226729,0.11212,94578.0,94577.0,0.572179]
[1745655226919,0.0845,94589.0,94588.0,0.2113545]
[1745655227217,0.21142,94589.0,94588.0,0.7401545]
[1745655227417,0.21142,94589.0,94588.0,0.75618111]
[1745655227717,0.21142,94589.0,94588.0,0.76688392]
[1745655229012,0.21142,94589.0,94588.0,0.76762898]
[1745655229013,0.21542,94589.0,94588.0,0.76762898]
[1745655229718,0.21142,94589.0,94588.0,0.76762898]
[1745655230518,0.21242,94589.0,94588.0,0.77062898]
[1745655230715,0.20242,94589.0,94588.0,0.77062898]
[1745655230917,0.20242,94589.0,94588.0,0.77061054]
[1745655231111,0.20242,94589.0,94588.0,0.75485731]
[1745655231814,0.20242,94589.0,94588.0,1.0942319]
[1745655232012,0.19242,94589.0,94588.0,1.1097511]
[1745655232319,0.15972,94589.0,94588.0,1.1097511]
[1745655233111,0.15972,94589.0,94588.0,1.0942319]
[1745655233515,0.0403,94600.0,94588.0,1.1999519]
[1745655233717,0.05,94600.0,94599.0,0.5721299]
[1745655233919,0.05,94600.0,94599.0,0.91150449]
[1745655234114,0.05,94600.0,94599.0,1.18521249]
[1745655234623,0.07208,94608.0,94607.0,0.211312]
[1745655234822,0.0399,94617.0,94616.0,0.2112919]
[1745655235011,0.0999,94617.0,94616.0,0.57984914]
[1745655235218,0.1199,94617.0,94616.0,0.57984914]
[1745655235416,0.1199,94617.0,94616.0,0.66624914]
[1745655235621,0.3099,94617.0,94616.0,0.66624914]
[1745655236217,0.3099,94617.0,94616.0,0.83424914]
[1745655236620,0.06,94617.0,94616.0,0.83424914]
[1745655237631,0.065,94617.0,94616.0,0.83524914]
[1745655237822,0.025,94617.0,94616.0,1.17462373]
[1745655238014,0.03,94617.0,94616.0,1.17562373]
[1745655238417,0.06688,94625.0,94616.0,1.12284243]
[1745655238620,0.19688,94625.0,94624.0,0.572074]
[1745655238818,0.20688,94625.0,94624.0,0.572074]
[1745655239330,0.19688,94625.0,94624.0,0.572074]
[1745655239521,0.37688,94625.0,94624.0,0.572074]
[1745655240919,0.38388,94625.0,94624.0,0.572074]
[1745655241627,0.38388,94625.0,94624.0,0.573074]
[1745655241927,0.38988,94625.0,94624.0,0.574074]
[1745655242322,0.38688,94625.0,94624.0,0.573074]
[1745655243627,0.38688,94625.0,94624.0,0.91244859]
[1745655243823,0.37988,94625.0,94624.0,0.91144859]
[1745655244022,0.38288,94625.0,94624.0,0.91144859]
[1745655244531,0.38284,94625.0,94624.0,0.91144859]
[1745655245328,0.37984,94625.0,94624.0,0.91144859]
[1745655245520,0.07284,94625.0,94624.0,0.91144859]
[1745655245731,0.06984,94625.0,94624.0,0.91144859]
[1745655246022,0.116,94625.0,94624.0,0.91144859]
[1745655246424,0.006,94625.0,94624.0,0.91144859]
[1745655246626,0.2184,94625.0,94624.0,0.91144859]
[1745655246923,0.4284,94625.0,94624.0,0.91144859]
[1745655247127,0.4697,94625.0,94624.0,0.91144859]
[1745655247724,0.1297,94625.0,94624.0,0.91144859]
[1745655247923,0.2497,94625.0,94624.0,0.91144859]
[1745655248128,0.2697,94625.0,94624.0,0.91144859]
[1745655248529,0.2597,94625.0,94624.0,0.91144859]
[1745655248731,0.4397,94625.0,94624.0,0.91144859]
[1745655252031,0.2297,94625.0,94624.0,0.91144859]
[1745655252229,0.2197,94625.0,94624.0,0.91144859]
[1745655252927,0.1297,94625.0,94624.0,0.91144859]
[1745655253239,0.2497,94625.0,94624.0,0.91144859]
[1745655253435,0.4484,94625.0,94624.0,0.91144859]
[1745655253627,0.0884,94625.0,94624.0,0.95374859]
[1745655253822,0.1984,94625.0,94624.0,0.95374859]
[1745655254331,0.0884,94625.0,94624.0,1.12174859]
[1745655254631,0.2084,94625.0,94624.0,1.12174859]
[1745655255135,0.0884,94625.0,94624.0,1.12174859]
[1745655255333,0.0884,94625.0,94624.0,0.96934908]
[1745655255735,0.1884,94625.0,94624.0,0.96934908]
[1745655256138,0.2084,94625.0,94624.0,0.96934908]